fUST/lending_fUST_20250819
["ID","MTS","AMOUNT","RATE_DAILY","PERIOD"]
[380158607,1755583849321,-1284.51,0.00019726,2]
[380158608,1755583849331,-650.98,0.00019726,2]
[380158609,1755583849340,-480.0,0.00019726,2]
[380158610,1755583849350,-1315.56,0.00019726,2]
[380158611,1755583849360,-999.79,0.00019726,2]
[380158612,1755583849369,-480.0,0.00019726,2]
[380158613,1755583849378,-582.45,0.00019726,2]
[380158614,1755583849388,-480.0,0.00019726,2]
[380158615,1755583849397,-152.749474,0.00019726,2]
[380158616,1755583849407,-552.5,0.00019726,2]
[380158617,1755583849416,-460.0,0.00019726,2]
[380158618,1755583849425,-480.0,0.00019726,2]
[380158619,1755583849435,-480.0,0.00019726,2]
[380158620,1755583849444,-480.0,0.00019726,2]
[380158621,1755583849453,-151.0,0.00019726,2]
[380158622,1755583849463,-151.0,0.00019726,2]
[380158623,1755583849472,-1918.87,0.00019726,2]
[380158624,1755583849481,-151.0,0.00019726,2]
[380158625,1755583849490,-151.0,0.00019726,2]
[380158626,1755583849499,-151.0,0.00019726,2]
[380158627,1755583849508,-151.0,0.00019726,2]
[380158628,1755583849518,-168.149576,0.00019726,2]
[380158629,1755583849527,-168.149576,0.00019726,2]
[380158630,1755583849538,-480.0,0.00019726,2]
[380158631,1755583849548,-168.149576,0.00019726,2]
[380158632,1755583849557,-168.149576,0.00019726,2]
[380158633,1755583849565,-179.888096,0.00019726,2]
[380158634,1755583849574,-480.0,0.00019726,2]
[380158635,1755583849583,-4917.88,0.00019726,2]
[380158636,1755583849592,-483.06,0.00019726,2]
[380158637,1755583849602,-1405.53,0.00019726,2]
[380158638,1755583849611,-2022.95,0.00019726,2]
[380158639,1755583849621,-480.0,0.00019726,2]
[380158640,1755583849630,-480.0,0.00019726,2]
[380158641,1755583849639,-480.0,0.00019726,2]
[380158642,1755583849648,-1367.32,0.00019726,2]
[380158643,1755583849658,-678.79,0.00019726,2]
[380158644,1755583849667,-480.0,0.00019726,2]
[380158645,1755583849676,-480.0,0.00019726,2]
[380158646,1755583849685,-511.68,0.00019726,2]
[380158647,1755583849775,-263.262141,0.00019726,2]
[380158648,1755583849785,-263.262141,0.00019726,2]
[380158649,1755583849794,-480.0,0.00019726,2]
[380158650,1755583849803,-263.262141,0.00019726,2]
[380158651,1755583849812,-263.262141,0.00019726,2]
[380158652,1755583849822,-480.0,0.00019726,2]
[380158653,1755583849832,-151.0,0.00019726,2]
[380158654,1755583849841,-652.083183,0.00019726,2]
[380158655,1755583849851,-151.0,0.00019726,2]
[380158656,1755583849860,-1694.12,0.00019726,2]
[380158657,1755583849870,-652.083183,0.00019726,2]
[380158658,1755583849879,-652.083183,0.00019726,2]
[380158659,1755583849889,-652.083183,0.00019726,2]
[380158660,1755583849898,-480.0,0.00019726,2]
[380158661,1755583849907,-480.0,0.00019726,2]
[380158662,1755583849917,-480.0,0.00019726,2]
[380158663,1755583849926,-1273.65,0.00019726,2]
[380158664,1755583849936,-151.0,0.00019726,2]
[380158665,1755583849945,-261.80758,0.00019726,2]
[380158666,1755583849955,-572.33,0.00019726,2]
[380158667,1755583849965,-578.85,0.00019726,2]
[380158668,1755583849975,-151.0,0.00019726,2]
[380158669,1755583849984,-151.0,0.00019726,2]
[380158670,1755583849994,-480.0,0.00019726,2]
[380158671,1755583850004,-480.0,0.00019726,2]
[380158672,1755583850014,-480.0,0.00019726,2]
[380158673,1755583850024,-718.08,0.00019726,2]
[380158674,1755583850034,-734.91,0.00019726,2]
[380158675,1755583850044,-480.0,0.00019726,2]
[380158676,1755583850054,-480.0,0.00019726,2]
[380158677,1755583850063,-1548.71,0.00019726,2]
[380158678,1755583850073,-5057.88,0.00019726,2]
[380158679,1755583850082,-550.7,0.00019726,2]
[380158680,1755583850096,-151.0,0.00019726,2]
[380158681,1755583850106,-151.0,0.00019726,2]
[380158682,1755583850115,-480.0,0.00019726,2]
[380158683,1755583850127,-480.0,0.00019726,2]
[380158684,1755583850136,-558.96,0.00019726,2]
[380158685,1755583850146,-267.301356,0.00019726,2]
[380158686,1755583850155,-267.301356,0.00019726,2]
[380158687,1755583850165,-480.0,0.00019726,2]
[380158688,1755583850174,-480.0,0.00019726,2]
[380158689,1755583850183,-267.301356,0.00019726,2]
[380158690,1755583850193,-267.301356,0.00019726,2]
[380158691,1755583850202,-480.0,0.00019726,2]
[380158692,1755583850211,-480.0,0.00019726,2]
[380158693,1755583850220,-500.0,0.00019726,2]
[380158694,1755583850231,-273.59839997,0.00019726,2]
[380158695,1755583850240,-263.262141,0.00019805,2]
[380158696,1755583850250,-263.262141,0.00019805,2]
[380158697,1755583850260,-151.0,0.00019805,2]
[380158698,1755583850269,-652.083183,0.00019805,2]
[380158699,1755583850279,-652.083183,0.00019805,2]
[380158700,1755583850289,-151.0,0.00019805,2]
[380158701,1755583850298,-151.0,0.00019805,2]
[380158702,1755583850308,-267.301356,0.00019805,2]
[380158703,1755583850319,-267.301356,0.00019805,2]
[380158704,1755583850328,-12685.85563623,0.00019805,2]
[380158705,1755583850337,-216.8835046,0.00019805,2]
[380158706,1755583850347,-232.21311493,0.00019805,2]
[380158707,1755583850357,-417.15472785,0.00019805,2]
[380158708,1755583850367,-160.0,0.00019805,2]
[380158709,1755583850376,-375.88899365,0.00019805,2]
[380158710,1755583850385,-160.0,0.00019805,2]
[380158711,1755583850394,-843.93972674,0.00019805,2]
[380158712,1755583850403,-528.6845513,0.00019805,2]
[380158713,1755583850412,-215.79176414,0.00019805,2]
[380158714,1755583850422,-160.0,0.00019805,2]
[380158715,1755583850433,-160.0,0.00019805,2]
[380158716,1755583850442,-168.0,0.00019813,2]
[380158717,1755583850452,-151.0,0.00019816,2]
[380158718,1755583850461,-273.59839997,0.00019836,2]
[380158719,1755583850471,-5000.0,0.00019861,2]
[380158720,1755583850481,-151.0,0.00019861,2]
[380158721,1755583850491,-151.0,0.00019863,2]
[380158722,1755583850500,-151.0,0.00019863,2]
[380158723,1755583850510,-151.0,0.00019863,2]
[380158724,1755583850519,-151.0,0.00019863,2]
[380158725,1755583850529,-151.0,0.00019863,2]
[380158726,1755583850539,-151.0,0.00019863,2]
[380158727,1755583850550,-305.479065,0.00019863,2]
[380158728,1755583850560,-151.0,0.000199,2]
[380158729,1755583850570,-273.59839997,0.00019918,2]
[380158730,1755583850579,-281.33224253,0.0001993,2]
[380158731,1755583850589,-168.0,0.0001997,2]
[380158732,1755583850599,-258.80967205,0.00019973,2]
[380158733,1755583850609,-500.0,0.00019973,2]
[380158734,1755583850620,-501.16140526,0.00019973,2]
[380158735,1755583850629,-501.62085001,0.00019973,2]
[380158736,1755583850639,-500.0,0.00019973,2]
[380158737,1755583850649,-500.95299113,0.00019973,2]
[380158738,1755583850659,-500.86910315,0.00019973,2]
[380158739,1755583850669,-500.0,0.00019973,2]
[380158740,1755583850678,-500.62627779,0.00019973,2]
[380158741,1755583850688,-500.0,0.00019973,2]
[380158742,1755583850699,-500.0,0.00019973,2]
[380158743,1755583850708,-500.0,0.00019973,2]
[380158744,1755583850718,-500.0,0.00019973,2]
[380158745,1755583850727,-500.0,0.00019973,2]
[380158746,1755583850737,-500.0,0.00019973,2]
[380158747,1755583850746,-501.56715421,0.00019973,2]
[380158748,1755583850755,-173.78036156,0.00019973,2]
[380158749,1755583850764,-501.99223192,0.00019973,2]
[380158750,1755583850774,-500.0,0.00019973,2]
[380158751,1755583850783,-500.0,0.00019973,2]
[380158752,1755583850793,-501.0378727,0.00019973,2]
[380158753,1755583850802,-158.6785085,0.00019973,2]
[380158754,1755583850811,-500.0,0.00019973,2]
[380158755,1755583850821,-500.0,0.00019973,2]
[380158756,1755583850830,-500.0,0.00019973,2]
[380158757,1755583850840,-500.0,0.00019973,2]
[380158758,1755583850852,-501.22264959,0.00019973,2]
[380158759,1755583850861,-151.51570773,0.00019973,2]
[380158760,1755583850870,-151.0,0.0001999,2]
[380158761,1755583850879,-171.205319,0.0001999,2]
[380158762,1755583850888,-151.0,0.0001999,2]
[380158763,1755583850898,-171.205319,0.0001999,2]
[380158764,1755583850907,-178.086988,0.0001999,2]
[380158765,1755583850917,-178.086988,0.0001999,2]
[380158766,1755583850927,-100000.0,0.0001999,2]
[380158767,1755583850936,-151.0,0.0001999,2]
[380158768,1755583850945,-151.0,0.0001999,2]
[380158769,1755583850956,-151.0,0.0001999,2]
[380158770,1755583850965,-168.149576,0.0001999,2]
[380158771,1755583850975,-168.149576,0.0001999,2]
[380158772,1755583850985,-263.262141,0.0001999,2]
[380158773,1755583850995,-263.262141,0.0001999,2]
[380158774,1755583851005,-151.0,0.0001999,2]
[380158775,1755583851015,-652.083183,0.0001999,2]
[380158776,1755583851025,-652.083183,0.0001999,2]
[380158777,1755583851036,-151.0,0.0001999,2]
[380158778,1755583851046,-267.301356,0.0001999,2]
[380158779,1755583851056,-267.301356,0.0001999,2]
[380158780,1755583851065,-200.0,0.00019999,2]
[380158781,1755583851075,-151.0,0.0002,2]
[380158782,1755583851086,-500.0,0.0002,2]
[380158783,1755583851102,-247.00320638,0.0002,2]
[380158784,1755583851113,-236.19939911,0.0002,20]
[380158785,1755583851123,-8167.78152454,0.0002,2]
[380158786,1755583851135,-500.0,0.0002,2]
[380158787,1755583851146,-480.0,0.0002,2]
[380158788,1755583851155,-151.0,0.0002,2]
[380158789,1755583851166,-151.0,0.0002,2]
[380158790,1755583851176,-151.163807,0.0002,2]
[380158791,1755583851185,-153.600496,0.0002,2]
[380158792,1755583851194,-480.0,0.0002,2]
[380158793,1755583851203,-480.0,0.0002,2]
[380158794,1755583851213,-151.0,0.0002,2]
[380158795,1755583851222,-151.0,0.0002,2]
[380158796,1755583851231,-151.0,0.0002,2]
[380158797,1755583851240,-480.0,0.0002,2]
[380158798,1755583851249,-480.0,0.0002,2]
[380158799,1755583851258,-480.0,0.0002,2]
[380158800,1755583851268,-151.0,0.0002,2]
[380158801,1755583851278,-480.0,0.0002,2]
[380158802,1755583851287,-480.0,0.0002,2]
[380158803,1755583851296,-542.17789435,0.0002,2]
[380158804,1755583851305,-151.0,0.0002,2]
[380158805,1755583851314,-480.0,0.0002,2]
[380158806,1755583851323,-390.02355355,0.0002,2]
[380158807,1755583851333,-480.0,0.0002,2]
[380158808,1755583851342,-151.0,0.0002,2]
[380158809,1755583851351,-480.0,0.0002,2]
[380158810,1755583851360,-689.87,0.0002,2]
[380158811,1755583851370,-480.0,0.0002,2]
[380158812,1755583851379,-382.18466568,0.0002,2]
[380158813,1755583851388,-634.58,0.0002,2]
[380158814,1755583851397,-151.0,0.0002,2]
[380158815,1755583851407,-151.0,0.0002,2]
[380158816,1755583851416,-480.0,0.0002,2]
[380158817,1755583851425,-151.833911,0.0002,2]
[380158818,1755583851434,-151.0,0.0002,2]
[380158819,1755583851443,-151.0,0.0002,2]
[380158820,1755583851452,-480.0,0.0002,2]
[380158821,1755583851461,-480.0,0.0002,2]
[380158822,1755583851470,-151.0,0.0002,2]
[380158823,1755583851480,-480.0,0.0002,2]
[380158824,1755583851489,-151.0,0.0002,2]
[380158825,1755583851499,-480.0,0.0002,2]
[380158826,1755583851509,-171.205319,0.0002,2]
[380158827,1755583851520,-151.0,0.0002,2]
[380158828,1755583851529,-171.205319,0.0002,2]
[380158829,1755583851539,-549.66,0.0002,2]
[380158830,1755583851548,-178.086988,0.0002,2]
[380158831,1755583851557,-178.086988,0.0002,2]
[380158832,1755583851566,-480.0,0.0002,2]
[380158833,1755583851575,-480.0,0.0002,2]
[380158834,1755583851584,-151.0,0.0002,2]
[380158835,1755583851594,-151.0,0.0002,2]
[380158836,1755583851603,-480.0,0.0002,2]
[380158837,1755583851612,-510.278042,0.0002,2]
[380158838,1755583851621,-510.278042,0.0002,2]
[380158839,1755583851710,-510.278042,0.0002,2]
[380158840,1755583851721,-151.0,0.0002,2]
[380158841,1755583851730,-510.278042,0.0002,2]
[380158842,1755583851740,-151.0,0.0002,2]
[380158843,1755583851749,-602.87,0.0002,2]
[380158844,1755583851758,-480.0,0.0002,2]
[380158845,1755583851768,-954.85,0.0002,2]
[380158846,1755583851777,-480.0,0.0002,2]
[380158847,1755583851787,-151.0,0.0002,2]
[380158848,1755583851796,-151.0,0.0002,2]
[380158849,1755583851805,-2613.36,0.0002,2]
[380158850,1755583851815,-1565.5,0.0002,2]
[380158851,1755583851824,-218.58317678,0.0002,2]
[380158852,1755583851833,-547.66,0.0002,2]
[380158853,1755583851843,-480.0,0.0002,2]
[380158854,1755583851852,-480.0,0.0002,2]
[380158855,1755583851862,-399.084057,0.0002,2]
[380158856,1755583851872,-399.084057,0.0002,2]
[380158857,1755583851881,-480.0,0.0002,2]
[380158858,1755583851892,-399.084057,0.0002,2]
[380158859,1755583851901,-151.0,0.0002,2]
[380158860,1755583851911,-399.084057,0.0002,2]
[380158861,1755583851920,-151.0,0.0002,2]
[380158862,1755583851929,-646.92,0.0002,2]
[380158863,1755583851939,-480.0,0.0002,2]
[380158864,1755583851948,-151.0,0.0002,2]
[380158865,1755583851957,-204.277819,0.0002,2]
[380158866,1755583851966,-204.277819,0.0002,2]
[380158867,1755583851975,-204.277819,0.0002,2]
[380158868,1755583851985,-204.277819,0.0002,2]
[380158869,1755583851994,-480.0,0.0002,2]
[380158870,1755583852004,-480.0,0.0002,2]
[380158871,1755583852013,-480.0,0.0002,2]
[380158872,1755583852022,-480.0,0.0002,2]
[380158873,1755583852031,-480.0,0.0002,2]
[380158874,1755583852040,-151.0,0.0002,2]
[380158875,1755583852050,-770.25,0.0002,2]
[380158876,1755583852060,-480.0,0.0002,2]
[380158877,1755583852070,-480.0,0.0002,2]
[380158878,1755583852079,-1624.21,0.0002,2]
[380158879,1755583852089,-151.0,0.0002,2]
[380158880,1755583852100,-759.81,0.0002,2]
[380158881,1755583852109,-151.0,0.0002,2]
[380158882,1755583852118,-480.0,0.0002,2]
[380158883,1755583852127,-687.49,0.0002,2]
[380158884,1755583852139,-724.49,0.0002,2]
[380158885,1755583852148,-1274.417039,0.0002,2]
[380158886,1755583852158,-1274.417039,0.0002,2]
[380158887,1755583852168,-409.660367,0.0002,2]
[380158888,1755583852177,-532.83,0.0002,2]
[380158889,1755583852187,-409.660367,0.0002,2]
[380158890,1755583852196,-3580.45,0.0002,2]
[380158891,1755583852206,-1274.417039,0.0002,2]
[380158892,1755583852216,-1274.417039,0.0002,2]
[380158893,1755583852226,-409.660367,0.0002,2]
[380158894,1755583852235,-409.660367,0.0002,2]
[380158895,1755583852244,-801.98,0.0002,2]
[380158896,1755583852254,-151.0,0.0002,2]
[380158897,1755583852263,-151.0,0.0002,2]
[380158898,1755583852273,-573.70504585,0.0002,2]
[380158899,1755583852282,-480.0,0.0002,2]
[380158900,1755583852292,-188.956485,0.0002,2]
[380158901,1755583852301,-188.956485,0.0002,2]
[380158902,1755583852311,-151.0,0.0002,2]
[380158903,1755583852321,-151.0,0.0002,2]
[380158904,1755583852331,-159.472657,0.0002,2]
[380158905,1755583852340,-151.0,0.0002,2]
[380158906,1755583852350,-159.472657,0.0002,2]
[380158907,1755583852359,-151.0,0.0002,2]
[380158908,1755583852368,-151.0,0.0002,2]
[380158909,1755583852378,-188.956485,0.0002,2]
[380158910,1755583852387,-188.956485,0.0002,2]
[380158911,1755583852398,-159.472657,0.0002,2]
[380158912,1755583852407,-159.472657,0.0002,2]
[380158913,1755583852417,-151.0,0.0002,2]
[380158914,1755583852426,-151.0,0.0002,2]
[380158915,1755583852435,-178.11009,0.0002,2]
[380158916,1755583852445,-480.0,0.0002,2]
[380158917,1755583852454,-1605.5,0.0002,2]
[380158918,1755583852464,-480.0,0.0002,2]
[380158919,1755583852474,-480.0,0.0002,2]
[380158920,1755583852483,-1245.16,0.0002,2]
[380158921,1755583852492,-152.010756,0.0002,2]
[380158922,1755583852501,-151.0,0.0002,2]
[380158923,1755583852510,-151.0,0.0002,2]
[380158924,1755583852519,-1126.4,0.0002,2]
[380158925,1755583852529,-726.74,0.0002,2]
[380158926,1755583852538,-152.96461,0.0002,2]
[380158927,1755583852548,-480.0,0.0002,2]
[380158928,1755583852557,-480.78,0.0002,2]
[380158929,1755583852566,-609.51,0.0002,2]
[380158930,1755583852576,-310.503962,0.0002,2]
[380158931,1755583852585,-310.503962,0.0002,2]
[380158932,1755583852595,-310.503962,0.0002,2]
[380158933,1755583852605,-480.0,0.0002,2]
[380158934,1755583852615,-310.503962,0.0002,2]
[380158935,1755583852626,-1284.51,0.0002,2]
[380158936,1755583852635,-650.98,0.0002,2]
[380158937,1755583852646,-1315.56,0.0002,2]
[380158938,1755583852655,-999.79,0.0002,2]
[380158939,1755583852665,-1500.0,0.0002,14]
[380158940,1755583852674,-1500.0,0.0002,14]
[380158941,1755583852683,-1500.0,0.0002,14]
[380158942,1755583852693,-618.02801741,0.0002,2]
[380158943,1755583852702,-1500.0,0.0002,14]
[380158944,1755583852712,-1500.0,0.0002,14]
[380158945,1755583852721,-1500.0,0.0002,14]
[380158946,1755583852730,-1500.0,0.0002,14]
[380158947,1755583852739,-1500.0,0.0002,14]
[380158948,1755583852749,-1500.0,0.0002,14]
[380158949,1755583852758,-1500.0,0.0002,14]
[380158950,1755583852767,-1500.0,0.0002,14]
[380158951,1755583852776,-1500.0,0.0002,14]
[380158952,1755583852785,-178.669194,0.0002,14]
[380158953,1755583852794,-582.45,0.0002,2]
[380158954,1755583852803,-480.0,0.0002,2]
[380158955,1755583852813,-552.5,0.0002,2]
[380158956,1755583852822,-460.0,0.0002,2]
[380158957,1755583852831,-151.0,0.0002,2]
[380158958,1755583852841,-1918.87,0.0002,2]
[380158959,1755583852850,-151.0,0.0002,2]
[380158960,1755583852859,-151.0,0.0002,2]
[380158961,1755583852868,-168.149576,0.0002,2]
[380158962,1755583852878,-168.149576,0.0002,2]
[380158963,1755583852887,-168.149576,0.0002,2]
[380158964,1755583852897,-168.149576,0.0002,2]
[380158965,1755583852906,-4917.88,0.0002,2]
[380158966,1755583852916,-1405.53,0.0002,2]
[380158967,1755583852925,-2022.95,0.0002,2]
[380158968,1755583852934,-480.0,0.0002,2]
[380158969,1755583852943,-1367.32,0.0002,2]
[380158970,1755583852953,-678.79,0.0002,2]
[380158971,1755583852962,-480.0,0.0002,2]
[380158972,1755583852973,-480.0,0.0002,2]
[380158973,1755583852982,-511.68,0.0002,2]
[380158974,1755583852992,-263.262141,0.0002,2]
[380158975,1755583853001,-480.0,0.0002,2]
[380158976,1755583853010,-263.262141,0.0002,2]
[380158977,1755583853020,-480.0,0.0002,2]
[380158978,1755583853029,-263.262141,0.0002,2]
[380158979,1755583853039,-263.262141,0.0002,2]
[380158980,1755583853048,-1694.12,0.0002,2]
[380158981,1755583853057,-154.004068,0.0002,2]
[380158982,1755583853067,-652.083183,0.0002,2]
[380158983,1755583853076,-629.8297317,0.0002,2]
[380158984,1755583853210,-22.2534513,0.0002,2]
[380158985,1755583853219,-652.083183,0.0002,2]
[380158986,1755583853229,-652.083183,0.0002,2]
[380158987,1755583853238,-480.0,0.0002,2]
[380158988,1755583853248,-480.0,0.0002,2]
[380158989,1755583853257,-480.0,0.0002,2]
[380158990,1755583853346,-1273.65,0.0002,2]
[380158991,1755583853356,-572.33,0.0002,2]
[380158992,1755583853365,-578.85,0.0002,2]
[380158993,1755583853375,-193.40245,0.0002,2]
[380158994,1755583853385,-480.0,0.0002,2]
[380158995,1755583853395,-480.0,0.0002,2]
[380158996,1755583853404,-480.0,0.0002,2]
[380158997,1755583853413,-718.08,0.0002,2]
[380158998,1755583853423,-734.91,0.0002,2]
[380158999,1755583853433,-480.0,0.0002,2]
[380159000,1755583853442,-1548.71,0.0002,2]
[380159001,1755583853451,-4000.0,0.0002,4]
[380159002,1755583853461,-5057.88,0.0002,2]
[380159003,1755583853471,-550.7,0.0002,2]
[380159004,1755583853480,-480.0,0.0002,2]
[380159005,1755583853490,-480.0,0.0002,2]
[380159006,1755583853500,-558.96,0.0002,2]
[380159007,1755583853509,-480.0,0.0002,2]
[380159008,1755583853518,-267.301356,0.0002,2]
[380159009,1755583853528,-480.0,0.0002,2]
[380159010,1755583853538,-267.301356,0.0002,2]
[380159011,1755583853547,-267.301356,0.0002,2]
[380159012,1755583853557,-267.301356,0.0002,2]
[380159013,1755583853566,-480.0,0.0002,2]
[380159014,1755583853575,-306.0,0.0002,2]
[380159015,1755583853585,-2057.13887983,0.00020009,2]
[380159016,1755583853594,-273.59839997,0.00020027,2]
[380159017,1755583853603,-876.0,0.0002004,2]
[380159018,1755583853613,-151.0,0.000201,4]
[380159019,1755583853623,-876.0,0.000201,2]
[380159020,1755583853632,-273.59839997,0.0002011,2]
[380159021,1755583853642,-1031.0,0.00020115,2]
[380159022,1755583853651,-430.0,0.00020187,2]
[380159023,1755583853660,-160.0,0.00020196,3]
[380159024,1755583853670,-160.0,0.00020196,5]
[380159025,1755583853679,-151.0,0.000202,4]
[380159026,1755583853688,-2121.16501861,0.00020203,2]
[380159027,1755583853698,-273.59839997,0.00020219,2]
[380159028,1755583853707,-430.0,0.00020226,2]
[380159029,1755583853716,-430.0,0.00020234,2]
[380159030,1755583853726,-1500.0,0.00020268,2]
[380159031,1755583853735,-151.0,0.00020273,2]
[380159032,1755583853745,-480.0,0.00020273,2]
[380159033,1755583853754,-151.0,0.00020273,2]
[380159034,1755583853764,-480.0,0.00020273,2]
[380159035,1755583853773,-519.15061245,0.00020273,2]
[380159036,1755583853782,-151.0,0.00020273,2]
[380159037,1755583853791,-151.0,0.00020273,2]
[380159038,1755583853800,-480.0,0.00020273,2]
[380159039,1755583853809,-480.0,0.00020273,2]
[380159040,1755583853819,-480.0,0.00020273,2]
[380159041,1755583853828,-480.0,0.00020273,2]
[380159042,1755583853838,-480.0,0.00020273,2]
[380159043,1755583853847,-480.0,0.00020273,2]
[380159044,1755583853856,-480.0,0.00020273,2]
[380159045,1755583853866,-151.0,0.00020273,2]
[380159046,1755583853875,-151.0,0.00020273,2]
[380159047,1755583853885,-480.0,0.00020273,2]
[380159048,1755583853896,-689.87,0.00020273,2]
[380159049,1755583853905,-480.0,0.00020273,2]
[380159050,1755583853914,-634.58,0.00020273,2]
[380159051,1755583853923,-151.0,0.00020273,2]
[380159052,1755583853932,-151.0,0.00020273,2]
[380159053,1755583853941,-151.0,0.00020273,2]
[380159054,1755583853950,-151.0,0.00020273,2]
[380159055,1755583853960,-480.0,0.00020273,2]
[380159056,1755583853969,-151.0,0.00020273,2]
[380159057,1755583853979,-151.0,0.00020273,2]
[380159058,1755583853988,-151.0,0.00020273,2]
[380159059,1755583853998,-480.0,0.00020273,2]
[380159060,1755583854007,-202.417179,0.00020273,2]
[380159061,1755583854020,-480.0,0.00020273,2]
[380159062,1755583854029,-151.0,0.00020273,2]
[380159063,1755583854039,-255.847081,0.00020273,2]
[380159064,1755583854049,-171.205319,0.00020273,2]
[380159065,1755583854058,-171.205319,0.00020273,2]
[380159066,1755583854067,-171.205319,0.00020273,2]
[380159067,1755583854077,-171.205319,0.00020273,2]
[380159068,1755583854087,-226.749327,0.00020273,2]
[380159069,1755583854100,-549.66,0.00020273,2]
[380159070,1755583854109,-178.086988,0.00020273,2]
[380159071,1755583854118,-178.086988,0.00020273,2]
[380159072,1755583854127,-178.086988,0.00020273,2]
[380159073,1755583854137,-178.086988,0.00020273,2]
[380159074,1755583854150,-480.0,0.00020273,2]
[380159075,1755583854159,-480.0,0.00020273,2]
[380159076,1755583854168,-151.0,0.00020273,2]
[380159077,1755583854177,-480.0,0.00020273,2]
[380159078,1755583854187,-510.278042,0.00020273,2]
[380159079,1755583854196,-510.278042,0.00020273,2]
[380159080,1755583854205,-151.0,0.00020273,2]
[380159081,1755583854214,-602.87,0.00020273,2]
[380159082,1755583854222,-480.0,0.00020273,2]
[380159083,1755583854232,-954.85,0.00020273,2]
[380159084,1755583854241,-417.80171575,0.00020273,2]
[380159085,1755583854250,-151.0,0.00020273,2]
[380159086,1755583854259,-2613.36,0.00020273,2]
[380159087,1755583854268,-1565.5,0.00020273,2]
[380159088,1755583854277,-547.66,0.00020273,2]
[380159089,1755583854286,-193.02015191,0.00020273,2]
[380159090,1755583854296,-399.084057,0.00020273,2]
[380159091,1755583854306,-399.084057,0.00020273,2]
[380159092,1755583854315,-399.084057,0.00020273,2]
[380159093,1755583854324,-151.0,0.00020273,2]
[380159094,1755583854334,-399.084057,0.00020273,2]
[380159095,1755583854343,-151.0,0.00020273,2]
[380159096,1755583854352,-480.0,0.00020273,2]
[380159097,1755583854361,-646.92,0.00020273,2]
[380159098,1755583854371,-204.277819,0.00020273,2]
[380159099,1755583854380,-204.277819,0.00020273,2]
[380159100,1755583854389,-204.277819,0.00020273,2]
[380159101,1755583854400,-204.277819,0.00020273,2]
[380159102,1755583854410,-625.98,0.00020273,2]
[380159103,1755583854419,-480.0,0.00020273,2]
[380159104,1755583854427,-480.0,0.00020273,2]
[380159105,1755583854437,-480.0,0.00020273,2]
[380159106,1755583854446,-480.0,0.00020273,2]